[Event "Titled Tuesday Blitz May 9 Early 2023"]
[White "Schut, Han"]
[Black "Szyszylo, Rafal"]
[WhiteFideId "1005561"]
[BlackFideId "1109626"]
[WhiteElo "2024"]
[BlackElo "1951"]
[Result "1-0"]
[Round "06"]
[TimeControl "180+2"]
[Date "2023.05.09"]
[WhiteClock "0:00:21"]
[BlackClock "0:00:21"]

1. e4 {[%clk 0:03:00]}  d6 {[%clk 0:03:00]} 2. d4 {[%clk 0:03:00]}  Nf6 {[%clk 0:02:57]} 3. Nc3 {[%clk 0:03:00]}  g6 {[%clk 0:02:55]} 4. f4 {[%clk 0:03:00]}  c6 {[%clk 0:02:55]} 5. Nf3 {[%clk 0:02:59]}  b5 {[%clk 0:02:55]} 6. Bd3 {[%clk 0:02:55]}  Bg7 {[%clk 0:02:52]} 7. e5 {[%clk 0:02:44]}  Ng4 {[%clk 0:02:50]} 8. Ne4 {[%clk 0:02:36]}  O-O {[%clk 0:02:49]} 9. h3 {[%clk 0:02:28]}  Nh6 {[%clk 0:02:48]} 10. O-O {[%clk 0:02:23]}  f6 {[%clk 0:02:38]} 11. Qe2 {[%clk 0:02:16]}  Na6 {[%clk 0:02:06]} 12. a4 {[%clk 0:02:12]}  Nc7 {[%clk 0:02:01]} 13. axb5 {[%clk 0:02:03]}  cxb5 {[%clk 0:02:00]} 14. Bxb5 {[%clk 0:02:01]}  Nxb5 {[%clk 0:02:01]} 15. Qxb5 {[%clk 0:02:01]}  a5 {[%clk 0:01:54]} 16. Qd5+ {[%clk 0:01:58]}  Kh8 {[%clk 0:01:35]} 17. Qxa8 {[%clk 0:01:57]}  Qb6 {[%clk 0:01:32]} 18. Qxa5 {[%clk 0:01:53]}  Qc6 {[%clk 0:01:29]} 19. Nc3 {[%clk 0:01:20]}  fxe5 {[%clk 0:01:29]} 20. dxe5 {[%clk 0:01:19]}  Bb7 {[%clk 0:01:28]} 21. Qb5 {[%clk 0:01:14]}  Qc7 {[%clk 0:01:26]} 22. Ra7 {[%clk 0:01:12]}  Rb8 {[%clk 0:01:26]} 23. exd6 {[%clk 0:01:03]}  exd6 {[%clk 0:01:26]} 24. Be3 {[%clk 0:01:00]}  Nf5 {[%clk 0:01:25]} 25. Bb6 {[%clk 0:00:59]}  Qe7 {[%clk 0:01:24]} 26. Re1 {[%clk 0:00:48]}  Qf8 {[%clk 0:01:09]} 27. Bc7 {[%clk 0:00:47]}  Nd4 {[%clk 0:00:51]} 28. Rxb7 {[%clk 0:00:36]}  Nxf3+ {[%clk 0:00:35]} 29. gxf3 {[%clk 0:00:36]}  Bd4+ {[%clk 0:00:35]} 30. Kg2 {[%clk 0:00:32]}  Rxb7 {[%clk 0:00:33]} 31. Qxb7 {[%clk 0:00:28]}  Qxf4 {[%clk 0:00:33]} 32. Re8+ {[%clk 0:00:22]}  Kg7 {[%clk 0:00:33]} 33. Bxd6+ {[%clk 0:00:22]}  Qf7 {[%clk 0:00:21]} 34. Re7 {[%clk 0:00:21]} 1-0


[Site "https://www.chess.com"]

[Event "Titled Tuesday Blitz May 9 Early 2023"]
[White "Mika, Tomasz"]
[Black "Ruge, Edison"]
[WhiteFideId "1132970"]
[BlackFideId "4401000"]
[WhiteElo "2179"]
[BlackElo "2175"]
[Result "1-0"]
[Round "06"]
[TimeControl "180+2"]
[Date "2023.05.09"]
[WhiteClock "0:01:43"]
[BlackClock "0:00:03"]

1. d4 {[%clk 0:03:00]}  d5 {[%clk 0:02:58]} 2. Nf3 {[%clk 0:03:00]}  e6 {[%clk 0:02:58]} 3. Bf4 {[%clk 0:03:01]}  f5 {[%clk 0:02:59]} 4. h3 {[%clk 0:02:59]}  Nf6 {[%clk 0:02:59]} 5. g4 {[%clk 0:02:58]}  c6 {[%clk 0:03:00]} 6. Ne5 {[%clk 0:02:55]}  Nbd7 {[%clk 0:02:55]} 7. e3 {[%clk 0:02:54]}  Nxe5 {[%clk 0:02:53]} 8. Bxe5 {[%clk 0:02:49]}  Ne4 {[%clk 0:02:51]} 9. Nd2 {[%clk 0:02:44]}  Nxf2 {[%clk 0:02:32]} 10. Kxf2 {[%clk 0:02:41]}  Qh4+ {[%clk 0:02:07]} 11. Bg3 {[%clk 0:02:40]}  Qf6 {[%clk 0:02:03]} 12. Kg2 {[%clk 0:02:38]}  Be7 {[%clk 0:02:02]} 13. Bd3 {[%clk 0:02:37]}  O-O {[%clk 0:02:01]} 14. Rf1 {[%clk 0:02:36]}  Qh6 {[%clk 0:01:57]} 15. Qe2 {[%clk 0:02:32]}  Bd7 {[%clk 0:01:55]} 16. Nf3 {[%clk 0:02:30]}  c5 {[%clk 0:01:19]} 17. c3 {[%clk 0:02:20]}  cxd4 {[%clk 0:01:00]} 18. cxd4 {[%clk 0:02:16]}  Rac8 {[%clk 0:00:55]} 19. Ne5 {[%clk 0:02:13]}  Be8 {[%clk 0:00:48]} 20. gxf5 {[%clk 0:02:07]}  Bg5 {[%clk 0:00:45]} 21. fxe6 {[%clk 0:02:03]}  Qxe6 {[%clk 0:00:37]} 22. Rxf8+ {[%clk 0:01:59]}  Kxf8 {[%clk 0:00:36]} 23. Rf1+ {[%clk 0:01:58]}  Kg8 {[%clk 0:00:36]} 24. Bf5 {[%clk 0:01:49]}  Qh6 {[%clk 0:00:10]} 25. Bxc8 {[%clk 0:01:47]}  Bxe3 {[%clk 0:00:03]} 26. Qf3 {[%clk 0:01:43]} 1-0


[Site "https://www.chess.com"]

[Event "Titled Tuesday Blitz May 9 Early 2023"]
[White "Womacka, Mathias"]
[Black "Van Baar, Esper"]
[WhiteFideId "4611390"]
[BlackFideId "1049321"]
[WhiteElo "2377"]
[BlackElo "2170"]
[Result "1-0"]
[Round "06"]
[TimeControl "180+2"]
[Date "2023.05.09"]
[WhiteClock "0:01:52"]
[BlackClock "0:00:15"]

1. e4 {[%clk 0:03:00]}  c5 {[%clk 0:02:59]} 2. Nf3 {[%clk 0:03:00]}  d6 {[%clk 0:02:59]} 3. d4 {[%clk 0:03:00]}  cxd4 {[%clk 0:03:00]} 4. Nxd4 {[%clk 0:03:00]}  Nf6 {[%clk 0:03:01]} 5. Nc3 {[%clk 0:03:00]}  a6 {[%clk 0:03:01]} 6. Be2 {[%clk 0:03:01]}  e5 {[%clk 0:03:01]} 7. Nb3 {[%clk 0:03:01]}  Be7 {[%clk 0:03:02]} 8. O-O {[%clk 0:03:01]}  O-O {[%clk 0:03:02]} 9. Kh1 {[%clk 0:03:01]}  Be6 {[%clk 0:03:02]} 10. f4 {[%clk 0:03:00]}  exf4 {[%clk 0:03:02]} 11. Bxf4 {[%clk 0:02:59]}  Nc6 {[%clk 0:03:03]} 12. Qe1 {[%clk 0:02:59]}  Ne5 {[%clk 0:02:57]} 13. Rd1 {[%clk 0:02:56]}  Qc7 {[%clk 0:02:43]} 14. Qg3 {[%clk 0:02:55]}  Rfd8 {[%clk 0:02:39]} 15. Nd4 {[%clk 0:02:49]}  Ng6 {[%clk 0:02:23]} 16. Bc1 {[%clk 0:02:47]}  Bc4 {[%clk 0:02:10]} 17. Bxc4 {[%clk 0:02:24]}  Qxc4 {[%clk 0:02:11]} 18. Nf5 {[%clk 0:02:24]}  Bf8 {[%clk 0:01:58]} 19. Nh6+ {[%clk 0:02:16]}  Kh8 {[%clk 0:01:43]} 20. Nd5 {[%clk 0:02:10]}  Nxe4 {[%clk 0:00:47]} 21. Nxf7+ {[%clk 0:02:07]}  Kg8 {[%clk 0:00:47]} 22. Qd3 {[%clk 0:02:03]}  Qxd3 {[%clk 0:00:44]} 23. cxd3 {[%clk 0:02:03]}  Nf6 {[%clk 0:00:15]} 24. Nxd8 {[%clk 0:01:52]} 1-0


[Site "https://www.chess.com"]

[Event "Titled Tuesday Blitz May 9 Early 2023"]
[White "Hadzimanolis, Antonios"]
[Black "Andreassen, Lars"]
[WhiteFideId "4202813"]
[BlackFideId "1504878"]
[WhiteElo "2242"]
[BlackElo "2119"]
[Result "1-0"]
[Round "06"]
[TimeControl "180+2"]
[Date "2023.05.09"]
[WhiteClock "0:00:08"]
[BlackClock "0:00:10"]

1. d4 {[%clk 0:02:48]}  d5 {[%clk 0:02:06]} 2. c4 {[%clk 0:02:47]}  e6 {[%clk 0:02:06]} 3. Nc3 {[%clk 0:02:46]}  c5 {[%clk 0:02:07]} 4. cxd5 {[%clk 0:02:44]}  cxd4 {[%clk 0:02:07]} 5. Qa4+ {[%clk 0:02:40]}  Bd7 {[%clk 0:02:08]} 6. Qxd4 {[%clk 0:02:39]}  exd5 {[%clk 0:02:08]} 7. Qxd5 {[%clk 0:02:33]}  Nc6 {[%clk 0:02:08]} 8. Nf3 {[%clk 0:02:25]}  Nf6 {[%clk 0:02:09]} 9. Qd1 {[%clk 0:02:23]}  Bc5 {[%clk 0:02:08]} 10. Bg5 {[%clk 0:02:13]}  h6 {[%clk 0:02:07]} 11. Bh4 {[%clk 0:02:08]}  Qb6 {[%clk 0:02:05]} 12. Qb3 {[%clk 0:01:27]}  Qxb3 {[%clk 0:01:59]} 13. axb3 {[%clk 0:01:27]}  Nb4 {[%clk 0:02:00]} 14. O-O-O {[%clk 0:01:23]}  O-O-O {[%clk 0:01:49]} 15. e3 {[%clk 0:01:19]}  Bf5 {[%clk 0:01:41]} 16. Bc4 {[%clk 0:01:07]}  g5 {[%clk 0:01:28]} 17. Bg3 {[%clk 0:00:55]}  Ne4 {[%clk 0:01:28]} 18. Nd4 {[%clk 0:00:39]}  Bxd4 {[%clk 0:01:08]} 19. Rxd4 {[%clk 0:00:38]}  Rxd4 {[%clk 0:01:08]} 20. exd4 {[%clk 0:00:38]}  Rd8 {[%clk 0:01:05]} 21. Rd1 {[%clk 0:00:29]}  a6 {[%clk 0:00:57]} 22. Bxf7 {[%clk 0:00:24]}  Nxg3 {[%clk 0:00:49]} 23. hxg3 {[%clk 0:00:23]}  Nd3+ {[%clk 0:00:49]} 24. Kd2 {[%clk 0:00:21]}  Rxd4 {[%clk 0:00:44]} 25. Ke3 {[%clk 0:00:18]}  Rd7 {[%clk 0:00:42]} 26. g4 {[%clk 0:00:17]}  Re7+ {[%clk 0:00:35]} 27. Kd4 {[%clk 0:00:16]}  Nxf2 {[%clk 0:00:24]} 28. gxf5 {[%clk 0:00:12]}  Nxd1 {[%clk 0:00:24]} 29. Be6+ {[%clk 0:00:12]}  Rxe6 {[%clk 0:00:19]} 30. fxe6 {[%clk 0:00:12]}  Nxc3 {[%clk 0:00:15]} 31. bxc3 {[%clk 0:00:12]}  Kd8 {[%clk 0:00:16]} 32. Ke5 {[%clk 0:00:13]}  Ke7 {[%clk 0:00:16]} 33. g4 {[%clk 0:00:13]}  b6 {[%clk 0:00:14]} 34. c4 {[%clk 0:00:12]}  a5 {[%clk 0:00:13]} 35. Kd5 {[%clk 0:00:12]}  h5 {[%clk 0:00:11]} 36. gxh5 {[%clk 0:00:12]}  g4 {[%clk 0:00:12]} 37. h6 {[%clk 0:00:08]}  g3 {[%clk 0:00:13]} 38. h7 {[%clk 0:00:08]}  g2 {[%clk 0:00:13]} 39. h8=Q {[%clk 0:00:08]}  g1=Q {[%clk 0:00:13]} 40. Qh7+ {[%clk 0:00:09]}  Kf6 {[%clk 0:00:11]} 41. Qf7+ {[%clk 0:00:08]}  Kg5 {[%clk 0:00:10]} 42. Qg8+ {[%clk 0:00:08]} 1-0


[Site "https://www.chess.com"]

[Event "Titled Tuesday Blitz May 9 Early 2023"]
[White "Fernandez Siles, Luis"]
[Black "Chemin, Justo Reinaldo"]
[WhiteFideId "2209420"]
[BlackFideId "2101580"]
[WhiteElo "2195"]
[BlackElo "1940"]
[Result "0-1"]
[Round "06"]
[TimeControl "180+2"]
[Date "2023.05.09"]
[WhiteClock "0:00:21"]
[BlackClock "0:00:13"]

1. e4 {[%clk 0:03:00]}  e6 {[%clk 0:02:59]} 2. d4 {[%clk 0:03:00]}  d5 {[%clk 0:03:00]} 3. Nd2 {[%clk 0:03:01]}  Nf6 {[%clk 0:02:59]} 4. Bd3 {[%clk 0:03:00]}  c5 {[%clk 0:02:57]} 5. c3 {[%clk 0:03:00]}  Nc6 {[%clk 0:02:56]} 6. Ngf3 {[%clk 0:02:59]}  cxd4 {[%clk 0:02:56]} 7. cxd4 {[%clk 0:03:00]}  dxe4 {[%clk 0:02:52]} 8. Nxe4 {[%clk 0:03:01]}  Bb4+ {[%clk 0:02:47]} 9. Nc3 {[%clk 0:03:00]}  Nd5 {[%clk 0:02:37]} 10. Bd2 {[%clk 0:02:55]}  O-O {[%clk 0:02:22]} 11. O-O {[%clk 0:02:47]}  h6 {[%clk 0:02:12]} 12. Qe2 {[%clk 0:02:43]}  Bxc3 {[%clk 0:02:02]} 13. bxc3 {[%clk 0:02:42]}  Qf6 {[%clk 0:02:01]} 14. Qe4 {[%clk 0:02:37]}  Qf5 {[%clk 0:01:52]} 15. Qxf5 {[%clk 0:02:28]}  exf5 {[%clk 0:01:52]} 16. Rfe1 {[%clk 0:02:18]}  Bd7 {[%clk 0:01:49]} 17. Ne5 {[%clk 0:02:18]}  Nxe5 {[%clk 0:01:45]} 18. Rxe5 {[%clk 0:02:19]}  Be6 {[%clk 0:01:35]} 19. Bxf5 {[%clk 0:02:11]}  Bxf5 {[%clk 0:01:35]} 20. Rxf5 {[%clk 0:02:10]}  Nb6 {[%clk 0:01:35]} 21. Rb1 {[%clk 0:01:57]}  Rac8 {[%clk 0:01:34]} 22. Ra5 {[%clk 0:01:40]}  Nc4 {[%clk 0:01:31]} 23. Rxa7 {[%clk 0:01:38]}  Nxd2 {[%clk 0:01:30]} 24. Rbxb7 {[%clk 0:01:38]}  Rxc3 {[%clk 0:01:30]} 25. g3 {[%clk 0:01:37]}  Rc6 {[%clk 0:01:14]} 26. Rd7 {[%clk 0:01:33]}  Rf6 {[%clk 0:01:13]} 27. Ra3 {[%clk 0:01:22]}  Rb8 {[%clk 0:01:10]} 28. Rd3 {[%clk 0:01:22]}  Ne4 {[%clk 0:01:05]} 29. f3 {[%clk 0:01:00]}  Rb1+ {[%clk 0:01:00]} 30. Kg2 {[%clk 0:00:58]}  Rb2+ {[%clk 0:01:00]} 31. Kg1 {[%clk 0:00:48]}  Ng5 {[%clk 0:00:56]} 32. f4 {[%clk 0:00:48]}  Nh3+ {[%clk 0:00:50]} 33. Kf1 {[%clk 0:00:47]}  Rc6 {[%clk 0:00:36]} 34. Ke1 {[%clk 0:00:43]}  Rc1+ {[%clk 0:00:26]} 35. Rd1 {[%clk 0:00:42]}  Rcc2 {[%clk 0:00:26]} 36. Rd3 {[%clk 0:00:37]}  Re2+ {[%clk 0:00:25]} 37. Kd1 {[%clk 0:00:36]}  Rxh2 {[%clk 0:00:24]} 38. Kc1 {[%clk 0:00:33]}  Rxa2 {[%clk 0:00:23]} 39. Kb1 {[%clk 0:00:33]}  Rab2+ {[%clk 0:00:23]} 40. Kc1 {[%clk 0:00:31]}  Rbg2 {[%clk 0:00:21]} 41. Rd1 {[%clk 0:00:29]}  Nf2 {[%clk 0:00:21]} 42. Rd2 {[%clk 0:00:28]}  Ne4 {[%clk 0:00:16]} 43. Rxg2 {[%clk 0:00:27]}  Rxg2 {[%clk 0:00:17]} 44. Re7 {[%clk 0:00:28]}  f5 {[%clk 0:00:16]} 45. d5 {[%clk 0:00:28]}  Rxg3 {[%clk 0:00:15]} 46. d6 {[%clk 0:00:28]}  Nxd6 {[%clk 0:00:15]} 47. Re6 {[%clk 0:00:28]}  Ne4 {[%clk 0:00:15]} 48. Re5 {[%clk 0:00:28]}  g6 {[%clk 0:00:13]} 49. Kd1 {[%clk 0:00:27]}  h5 {[%clk 0:00:13]} 50. Ke1 {[%clk 0:00:21]}  h4 {[%clk 0:00:13]} 0-1


[Site "https://www.chess.com"]

[Event "Titled Tuesday Blitz May 9 Early 2023"]
[White "Rosenberg, Evan S"]
[Black "Yosha_Iglesias"]
[WhiteFideId "2019299"]
[WhiteElo "2252"]
[BlackElo "2412"]
[Result "1-0"]
[Round "06"]
[TimeControl "180+2"]
[Date "2023.05.09"]
[WhiteClock "0:00:06"]
[BlackClock "0:00:00"]

1. d4 {[%clk 0:03:00]}  d5 {[%clk 0:02:58]} 2. Nf3 {[%clk 0:03:00]}  Nf6 {[%clk 0:02:57]} 3. c3 {[%clk 0:03:00]}  c5 {[%clk 0:02:54]} 4. dxc5 {[%clk 0:03:00]}  e6 {[%clk 0:02:54]} 5. Be3 {[%clk 0:03:00]}  a5 {[%clk 0:02:41]} 6. c4 {[%clk 0:03:00]}  Nc6 {[%clk 0:02:28]} 7. Nc3 {[%clk 0:02:53]}  dxc4 {[%clk 0:02:23]} 8. Qxd8+ {[%clk 0:02:50]}  Nxd8 {[%clk 0:02:24]} 9. Ne5 {[%clk 0:02:18]}  Nd7 {[%clk 0:02:09]} 10. Nxc4 {[%clk 0:02:06]}  Bxc5 {[%clk 0:02:06]} 11. Bxc5 {[%clk 0:02:03]}  Nxc5 {[%clk 0:02:06]} 12. Nd6+ {[%clk 0:02:04]}  Ke7 {[%clk 0:02:05]} 13. O-O-O {[%clk 0:02:01]}  Nc6 {[%clk 0:01:50]} 14. e3 {[%clk 0:01:48]}  Rd8 {[%clk 0:01:46]} 15. Ncb5 {[%clk 0:01:33]}  Nb4 {[%clk 0:01:12]} 16. a3 {[%clk 0:01:30]}  Nb3+ {[%clk 0:01:06]} 17. Kb1 {[%clk 0:01:26]}  Nd5 {[%clk 0:00:52]} 18. Bc4 {[%clk 0:00:52]}  a4 {[%clk 0:00:29]} 19. e4 {[%clk 0:00:35]}  Nb6 {[%clk 0:00:24]} 20. Be2 {[%clk 0:00:34]}  e5 {[%clk 0:00:16]} 21. Nc4 {[%clk 0:00:13]}  Nxc4 {[%clk 0:00:14]} 22. Bxc4 {[%clk 0:00:14]}  Nd4 {[%clk 0:00:14]} 23. Nc7 {[%clk 0:00:11]}  Ra5 {[%clk 0:00:08]} 24. Nd5+ {[%clk 0:00:12]}  Kf8 {[%clk 0:00:07]} 25. f4 {[%clk 0:00:12]}  Be6 {[%clk 0:00:06]} 26. fxe5 {[%clk 0:00:11]}  Nc6 {[%clk 0:00:06]} 27. Rhf1 {[%clk 0:00:09]}  Nxe5 {[%clk 0:00:05]} 28. Ba2 {[%clk 0:00:10]}  Bxd5 {[%clk 0:00:04]} 29. exd5 {[%clk 0:00:09]}  f6 {[%clk 0:00:05]} 30. d6 {[%clk 0:00:09]}  Ra6 {[%clk 0:00:04]} 31. Rde1 {[%clk 0:00:08]}  Raxd6 {[%clk 0:00:03]} 32. Rxe5 {[%clk 0:00:07]}  Rd1+ {[%clk 0:00:03]} 33. Rxd1 {[%clk 0:00:07]}  Rxd1+ {[%clk 0:00:03]} 34. Kc2 {[%clk 0:00:08]}  Rg1 {[%clk 0:00:04]} 35. Re2 {[%clk 0:00:07]}  g5 {[%clk 0:00:02]} 36. Bd5 {[%clk 0:00:07]}  b6 {[%clk 0:00:00]} 37. Bc6 {[%clk 0:00:06]} 1-0


[Site "https://www.chess.com"]

[Event "Titled Tuesday Blitz May 9 Early 2023"]
[White "Thorhallsson, Simon"]
[Black "Clawitter, Craig"]
[WhiteFideId "2310090"]
[BlackFideId "2023105"]
[WhiteElo "2108"]
[BlackElo "2241"]
[Result "1-0"]
[Round "06"]
[TimeControl "180+2"]
[Date "2023.05.09"]
[WhiteClock "0:00:31"]
[BlackClock "0:00:00"]

1. e4 {[%clk 0:03:00]}  e6 {[%clk 0:02:58]} 2. d4 {[%clk 0:03:00]}  d5 {[%clk 0:02:49]} 3. e5 {[%clk 0:03:00]}  c5 {[%clk 0:02:49]} 4. c3 {[%clk 0:03:01]}  Qb6 {[%clk 0:02:49]} 5. Nf3 {[%clk 0:03:01]}  Nc6 {[%clk 0:02:49]} 6. Bd3 {[%clk 0:02:54]}  cxd4 {[%clk 0:02:49]} 7. O-O {[%clk 0:02:52]}  Bd7 {[%clk 0:02:49]} 8. Re1 {[%clk 0:02:51]}  Nge7 {[%clk 0:02:46]} 9. Nbd2 {[%clk 0:02:50]}  dxc3 {[%clk 0:02:45]} 10. bxc3 {[%clk 0:02:50]}  Ng6 {[%clk 0:02:40]} 11. Nb3 {[%clk 0:02:49]}  Be7 {[%clk 0:02:34]} 12. h4 {[%clk 0:02:42]}  Nxh4 {[%clk 0:02:22]} 13. Nxh4 {[%clk 0:02:42]}  Bxh4 {[%clk 0:02:23]} 14. Be3 {[%clk 0:02:42]}  Qd8 {[%clk 0:02:19]} 15. Bc5 {[%clk 0:02:39]}  Be7 {[%clk 0:02:13]} 16. Qg4 {[%clk 0:02:36]}  O-O {[%clk 0:02:06]} 17. Re3 {[%clk 0:02:26]}  f5 {[%clk 0:01:55]} 18. exf6 {[%clk 0:02:22]}  Rxf6 {[%clk 0:01:55]} 19. Rh3 {[%clk 0:02:16]}  h6 {[%clk 0:01:29]} 20. Rg3 {[%clk 0:02:10]}  Qf8 {[%clk 0:01:24]} 21. Bxe7 {[%clk 0:02:07]}  Qxe7 {[%clk 0:01:20]} 22. Nc5 {[%clk 0:02:03]}  Ne5 {[%clk 0:00:38]} 23. Qd4 {[%clk 0:01:48]}  Raf8 {[%clk 0:00:19]} 24. Qxe5 {[%clk 0:01:35]}  Qxc5 {[%clk 0:00:19]} 25. Rf1 {[%clk 0:01:36]}  R8f7 {[%clk 0:00:13]} 26. Bg6 {[%clk 0:01:34]}  Rf8 {[%clk 0:00:12]} 27. Bd3 {[%clk 0:01:33]}  R8f7 {[%clk 0:00:12]} 28. Kh2 {[%clk 0:01:19]}  Rxf2 {[%clk 0:00:09]} 29. Rxf2 {[%clk 0:01:12]}  Qxf2 {[%clk 0:00:09]} 30. Bg6 {[%clk 0:01:09]}  Rf8 {[%clk 0:00:08]} 31. Qd6 {[%clk 0:01:08]}  Bc8 {[%clk 0:00:04]} 32. Qe5 {[%clk 0:01:01]}  Qf6 {[%clk 0:00:04]} 33. Qe3 {[%clk 0:00:54]}  e5 {[%clk 0:00:04]} 34. Qd3 {[%clk 0:00:50]}  Be6 {[%clk 0:00:03]} 35. Kg1 {[%clk 0:00:35]}  Qf2+ {[%clk 0:00:02]} 36. Kh2 {[%clk 0:00:35]}  Qf4 {[%clk 0:00:02]} 37. Bh7+ {[%clk 0:00:31]}  Kh8 {[%clk 0:00:02]} 38. Qg6 {[%clk 0:00:31]}  Qh4+ {[%clk 0:00:00]} 39. Kg1 {[%clk 0:00:31]} 1-0


[Site "https://www.chess.com"]

[Event "Titled Tuesday Blitz May 9 Early 2023"]
[White "Nugumanov, Bakhtiyar"]
[Black "Bilan, Danila"]
[WhiteFideId "13701797"]
[BlackFideId "24161918"]
[WhiteElo "2209"]
[BlackElo "2182"]
[Result "0-1"]
[Round "06"]
[TimeControl "180+2"]
[Date "2023.05.09"]
[WhiteClock "0:00:00"]
[BlackClock "0:00:05"]

1. Nf3 {[%clk 0:02:57]}  d5 {[%clk 0:02:59]} 2. g3 {[%clk 0:02:57]}  Nf6 {[%clk 0:02:58]} 3. Bg2 {[%clk 0:02:57]}  c5 {[%clk 0:02:59]} 4. O-O {[%clk 0:02:57]}  Nc6 {[%clk 0:03:00]} 5. d4 {[%clk 0:02:57]}  Bg4 {[%clk 0:03:00]} 6. c4 {[%clk 0:02:36]}  e6 {[%clk 0:02:58]} 7. Nc3 {[%clk 0:02:33]}  dxc4 {[%clk 0:02:52]} 8. Qa4 {[%clk 0:02:29]}  Bxf3 {[%clk 0:02:29]} 9. Bxf3 {[%clk 0:02:29]}  cxd4 {[%clk 0:02:29]} 10. Bxc6+ {[%clk 0:02:27]}  bxc6 {[%clk 0:02:29]} 11. Qxc6+ {[%clk 0:02:28]}  Nd7 {[%clk 0:02:22]} 12. Nb5 {[%clk 0:02:20]}  Rc8 {[%clk 0:02:16]} 13. Qe4 {[%clk 0:02:01]}  Bc5 {[%clk 0:01:53]} 14. Rd1 {[%clk 0:01:37]}  Nf6 {[%clk 0:01:32]} 15. Qh4 {[%clk 0:01:29]}  d3 {[%clk 0:01:05]} 16. exd3 {[%clk 0:01:15]}  cxd3 {[%clk 0:01:06]} 17. Bg5 {[%clk 0:01:13]}  a6 {[%clk 0:00:38]} 18. Nc3 {[%clk 0:01:11]}  h6 {[%clk 0:00:27]} 19. Bxf6 {[%clk 0:01:08]}  Qxf6 {[%clk 0:00:26]} 20. Qxf6 {[%clk 0:01:09]}  gxf6 {[%clk 0:00:26]} 21. Rxd3 {[%clk 0:01:10]}  Ke7 {[%clk 0:00:26]} 22. Rad1 {[%clk 0:01:09]}  Rc7 {[%clk 0:00:23]} 23. Ne4 {[%clk 0:01:02]}  Ba7 {[%clk 0:00:18]} 24. Rd6 {[%clk 0:00:57]}  f5 {[%clk 0:00:16]} 25. Nc3 {[%clk 0:00:44]}  Rb8 {[%clk 0:00:15]} 26. Na4 {[%clk 0:00:32]}  a5 {[%clk 0:00:10]} 27. b3 {[%clk 0:00:29]}  Rbb7 {[%clk 0:00:07]} 28. R6d2 {[%clk 0:00:29]}  Kf6 {[%clk 0:00:05]} 29. Kg2 {[%clk 0:00:29]}  Kg5 {[%clk 0:00:05]} 30. Re1 {[%clk 0:00:22]}  Kf6 {[%clk 0:00:05]} 31. Red1 {[%clk 0:00:18]}  Rc6 {[%clk 0:00:04]} 32. Rd6 {[%clk 0:00:11]}  Rbc7 {[%clk 0:00:04]} 33. Rxc6 {[%clk 0:00:11]}  Rxc6 {[%clk 0:00:05]} 34. Rd2 {[%clk 0:00:11]}  e5 {[%clk 0:00:05]} 35. Kf3 {[%clk 0:00:10]}  Bd4 {[%clk 0:00:04]} 36. Ke2 {[%clk 0:00:10]}  Ke6 {[%clk 0:00:05]} 37. f4 {[%clk 0:00:09]}  f6 {[%clk 0:00:05]} 38. Nb2 {[%clk 0:00:00]}  Rc1 {[%clk 0:00:05]} 0-1


[Site "https://www.chess.com"]

[Event "Titled Tuesday Blitz May 9 Early 2023"]
[White "Quirke, Jeffrey"]
[Black "Begunov, Konstantin"]
[WhiteFideId "2013029"]
[BlackFideId "4118510"]
[WhiteElo "2210"]
[BlackElo "2050"]
[Result "0-1"]
[Round "06"]
[TimeControl "180+2"]
[Date "2023.05.09"]
[WhiteClock "0:00:00"]
[BlackClock "0:00:05"]

1. e4 {[%clk 0:03:00]}  c5 {[%clk 0:02:20]} 2. Nc3 {[%clk 0:02:59]}  d6 {[%clk 0:02:18]} 3. f4 {[%clk 0:02:59]}  g6 {[%clk 0:02:17]} 4. Nf3 {[%clk 0:02:59]}  Bg7 {[%clk 0:02:18]} 5. Bb5+ {[%clk 0:03:00]}  Bd7 {[%clk 0:02:17]} 6. a4 {[%clk 0:02:58]}  a6 {[%clk 0:02:17]} 7. Bxd7+ {[%clk 0:02:57]}  Qxd7 {[%clk 0:02:16]} 8. Nd5 {[%clk 0:02:56]}  Qd8 {[%clk 0:02:08]} 9. a5 {[%clk 0:02:54]}  Nd7 {[%clk 0:01:57]} 10. d3 {[%clk 0:02:53]}  e6 {[%clk 0:01:57]} 11. Ne3 {[%clk 0:02:53]}  Ne7 {[%clk 0:01:56]} 12. O-O {[%clk 0:02:52]}  Nc6 {[%clk 0:01:50]} 13. f5 {[%clk 0:02:47]}  Qe7 {[%clk 0:01:35]} 14. fxe6 {[%clk 0:02:37]}  fxe6 {[%clk 0:01:34]} 15. Ng4 {[%clk 0:02:33]}  h6 {[%clk 0:01:11]} 16. Qe1 {[%clk 0:02:29]}  O-O-O {[%clk 0:01:07]} 17. c3 {[%clk 0:02:26]}  Rdf8 {[%clk 0:00:54]} 18. Bd2 {[%clk 0:02:03]}  h5 {[%clk 0:00:50]} 19. Ne3 {[%clk 0:02:01]}  Nde5 {[%clk 0:00:49]} 20. Qe2 {[%clk 0:01:52]}  Nxf3+ {[%clk 0:00:46]} 21. Rxf3 {[%clk 0:01:52]}  Rxf3 {[%clk 0:00:46]} 22. gxf3 {[%clk 0:01:40]}  g5 {[%clk 0:00:42]} 23. Kh1 {[%clk 0:01:39]}  Rf8 {[%clk 0:00:41]} 24. Nc4 {[%clk 0:01:30]}  Ne5 {[%clk 0:00:37]} 25. Nxe5 {[%clk 0:01:02]}  Bxe5 {[%clk 0:00:36]} 26. Rg1 {[%clk 0:01:01]}  Bf4 {[%clk 0:00:34]} 27. Bxf4 {[%clk 0:00:56]}  Rxf4 {[%clk 0:00:35]} 28. b4 {[%clk 0:00:45]}  Qf6 {[%clk 0:00:32]} 29. bxc5 {[%clk 0:00:39]}  dxc5 {[%clk 0:00:32]} 30. Qe3 {[%clk 0:00:33]}  Qxc3 {[%clk 0:00:20]} 31. Rxg5 {[%clk 0:00:29]}  Qa1+ {[%clk 0:00:19]} 32. Rg1 {[%clk 0:00:28]}  Qe5 {[%clk 0:00:19]} 33. Rc1 {[%clk 0:00:21]}  Kb8 {[%clk 0:00:19]} 34. Rxc5 {[%clk 0:00:20]}  Qf6 {[%clk 0:00:17]} 35. Rxh5 {[%clk 0:00:08]}  Qa1+ {[%clk 0:00:12]} 36. Kg2 {[%clk 0:00:07]}  Qb2+ {[%clk 0:00:09]} 37. Kg3 {[%clk 0:00:07]}  Rf8 {[%clk 0:00:07]} 38. Qc5 {[%clk 0:00:02]}  Qf6 {[%clk 0:00:06]} 39. Qd6+ {[%clk 0:00:00]}  Ka8 {[%clk 0:00:05]} 0-1


[Site "https://www.chess.com"]

[Event "Titled Tuesday Blitz May 9 Early 2023"]
[White "Barria Santos, Jose Guilherme"]
[Black "Sanhueza, Cristian"]
[WhiteFideId "1939300"]
[BlackFideId "116815"]
[WhiteElo "2266"]
[BlackElo "2174"]
[Result "0-1"]
[Round "06"]
[TimeControl "180+2"]
[Date "2023.05.09"]
[WhiteClock "0:02:26"]
[BlackClock "0:02:11"]

1. e4 {[%clk 0:03:00]}  e5 {[%clk 0:02:58]} 2. Nf3 {[%clk 0:03:00]}  Nc6 {[%clk 0:02:59]} 3. Bb5 {[%clk 0:03:00]}  a6 {[%clk 0:02:59]} 4. Ba4 {[%clk 0:03:01]}  Nf6 {[%clk 0:02:59]} 5. O-O {[%clk 0:03:01]}  Be7 {[%clk 0:02:56]} 6. Re1 {[%clk 0:03:01]}  b5 {[%clk 0:02:56]} 7. Bb3 {[%clk 0:03:01]}  d6 {[%clk 0:02:56]} 8. d3 {[%clk 0:03:00]}  Na5 {[%clk 0:02:55]} 9. h3 {[%clk 0:02:58]}  O-O {[%clk 0:02:53]} 10. Bd2 {[%clk 0:02:55]}  Nxb3 {[%clk 0:02:53]} 11. axb3 {[%clk 0:02:55]}  Bb7 {[%clk 0:02:49]} 12. Nc3 {[%clk 0:02:55]}  Re8 {[%clk 0:02:49]} 13. d4 {[%clk 0:02:50]}  exd4 {[%clk 0:02:47]} 14. Nxd4 {[%clk 0:02:50]}  Bf8 {[%clk 0:02:47]} 15. f3 {[%clk 0:02:50]}  d5 {[%clk 0:02:43]} 16. Bg5 {[%clk 0:02:49]}  dxe4 {[%clk 0:02:41]} 17. fxe4 {[%clk 0:02:47]}  Bc5 {[%clk 0:02:36]} 18. Bxf6 {[%clk 0:02:47]}  Qxf6 {[%clk 0:02:34]} 19. Ne2 {[%clk 0:02:32]}  Rxe4 {[%clk 0:02:31]} 20. c3 {[%clk 0:02:26]}  Qg6 {[%clk 0:02:11]} 0-1


[Site "https://www.chess.com"]